[Event "Early-Titled-Tuesday-Blitz-September-12-2023"]
[Site "Chess.com"]
[Date "2023.09.12"]
[Round "4"]
[White "Chessdreamer2020"]
[Black "Egor_Koshulyan"]
[Result "0-1"]
[WhiteElo "2538"]
[BlackElo "2741"]
[TimeControl "180+1"]
[EndTime "8:38:05 PDT"]
[Termination "Egor_Koshulyan won by checkmate"]

1. e4 {[%clk 0:03:00.2]} 1... c5 {[%clk 0:02:58.9]} 2. Nf3 {[%clk 0:03:00.5]}
2... Nc6 {[%clk 0:02:58.8]} 3. Bb5 {[%clk 0:02:59.8]} 3... g5 {[%clk 0:02:58.6]}
4. Nxg5 {[%clk 0:02:56.6]} 4... Nf6 {[%clk 0:02:55.8]} 5. d3 {[%clk 0:02:52.4]}
5... Rg8 {[%clk 0:02:55.6]} 6. g3 {[%clk 0:02:27.5]} 6... Nd4 {[%clk 0:02:54.2]}
7. Bc4 {[%clk 0:02:19.5]} 7... d5 {[%clk 0:02:54.3]} 8. exd5 {[%clk 0:02:18.5]}
8... b5 {[%clk 0:02:54.5]} 9. Bb3 {[%clk 0:02:18.3]} 9... Nxb3 {[%clk
0:02:52.2]} 10. axb3 {[%clk 0:02:17.9]} 10... Rxg5 {[%clk 0:02:52.8]} 11. Bxg5
{[%clk 0:02:17.6]} 11... Qxd5 {[%clk 0:02:53.3]} 12. O-O {[%clk 0:02:10.5]}
12... Bh3 {[%clk 0:02:52.5]} 13. f3 {[%clk 0:02:00.8]} 13... Qxg5 {[%clk
0:02:52.1]} 14. Re1 {[%clk 0:02:00]} 14... Qd5 {[%clk 0:02:52.5]} 15. Nc3 {[%clk
0:01:59.4]} 15... Qd4+ {[%clk 0:02:52.5]} 16. Kh1 {[%clk 0:01:58.4]} 16... b4
{[%clk 0:02:22.8]} 17. Ne2 {[%clk 0:01:24.8]} 17... Qd6 {[%clk 0:02:12]} 18. Nf4
{[%clk 0:01:24.4]} 18... Bd7 {[%clk 0:02:11.7]} 19. Qe2 {[%clk 0:01:04.6]} 19...
Bh6 {[%clk 0:02:06.2]} 20. Qe5 {[%clk 0:00:53.2]} 20... Kf8 {[%clk 0:01:44.7]}
21. Ra5 {[%clk 0:00:47.2]} 21... Bc6 {[%clk 0:01:38.9]} 22. Kg2 {[%clk
0:00:46.9]} 22... Qxe5 {[%clk 0:01:36.6]} 23. Rxe5 {[%clk 0:00:46.7]} 23... Nd7
{[%clk 0:01:37]} 24. Rh5 {[%clk 0:00:45.4]} 24... Bg7 {[%clk 0:01:16.3]} 25.
Rxh7 {[%clk 0:00:41.3]} 25... Bxb2 {[%clk 0:01:13.8]} 26. Rh5 {[%clk 0:00:17.7]}
26... Bd4 {[%clk 0:01:10.5]} 27. Ne2 {[%clk 0:00:15.5]} 27... Bg7 {[%clk
0:01:03.6]} 28. h4 {[%clk 0:00:10.8]} 28... Bb7 {[%clk 0:00:59.2]} 29. Rg5
{[%clk 0:00:09]} 29... Bf6 {[%clk 0:00:56.5]} 30. Rf5 {[%clk 0:00:06.4]} 30...
e6 {[%clk 0:00:52]} 31. Rh5 {[%clk 0:00:04.3]} 31... Ne5 {[%clk 0:00:49.1]} 32.
Rxc5 {[%clk 0:00:02.7]} 32... Bxf3+ {[%clk 0:00:48.7]} 33. Kf2 {[%clk
0:00:02.5]} 33... Bxh5 {[%clk 0:00:48.8]} 34. Nf4 {[%clk 0:00:02.7]} 34... Bg4
{[%clk 0:00:47.4]} 35. d4 {[%clk 0:00:02.9]} 35... Nd7 {[%clk 0:00:47.7]} 36.
Rc7 {[%clk 0:00:03.2]} 36... Bxd4+ {[%clk 0:00:47.9]} 37. Ke1 {[%clk 0:00:02.7]}
37... Bc3+ {[%clk 0:00:47.6]} 38. Kf1 {[%clk 0:00:02.8]} 38... Ne5 {[%clk
0:00:47.9]} 39. h5 {[%clk 0:00:02.7]} 39... Rd8 {[%clk 0:00:46.6]} 40. Rxa7
{[%clk 0:00:01.5]} 40... Rd1+ {[%clk 0:00:46.6]} 41. Kf2 {[%clk 0:00:02]} 41...
Rh1 {[%clk 0:00:47]} 42. Kg2 {[%clk 0:00:02.3]} 42... Bf3+ {[%clk 0:00:46.8]}
43. Kf2 {[%clk 0:00:01.9]} 43... Bd4# {[%clk 0:00:47.4]} 0-1

[Event "Early-Titled-Tuesday-Blitz-September-12-2023"]
[Site "Chess.com"]
[Date "2023.09.12"]
[Round "4"]
[White "jk13"]
[Black "tetrix83"]
[Result "0-1"]
[WhiteElo "2691"]
[BlackElo "2543"]
[TimeControl "180+1"]
[EndTime "8:38:05 PDT"]
[Termination "tetrix83 won by resignation"]

1. e4 {[%clk 0:03:00.9]} 1... c5 {[%clk 0:02:55.9]} 2. c3 {[%clk 0:03:00.9]}
2... Nf6 {[%clk 0:02:55.1]} 3. e5 {[%clk 0:03:01.5]} 3... Nd5 {[%clk 0:02:54.9]}
4. Bc4 {[%clk 0:03:02.4]} 4... Nb6 {[%clk 0:02:53]} 5. Bb3 {[%clk 0:03:03.1]}
5... Nc6 {[%clk 0:02:52.9]} 6. Nf3 {[%clk 0:03:02.9]} 6... d5 {[%clk 0:02:52.8]}
7. exd6 {[%clk 0:03:03.8]} 7... e6 {[%clk 0:02:51.3]} 8. d4 {[%clk 0:03:03.7]}
8... cxd4 {[%clk 0:02:44]} 9. cxd4 {[%clk 0:03:04.6]} 9... Bxd6 {[%clk 0:02:42]}
10. Nc3 {[%clk 0:03:05]} 10... O-O {[%clk 0:02:41.9]} 11. O-O {[%clk 0:03:05.7]}
11... Nb4 {[%clk 0:02:27.1]} 12. Re1 {[%clk 0:02:54]} 12... Bd7 {[%clk
0:02:23.5]} 13. Ne5 {[%clk 0:02:53.8]} 13... Rc8 {[%clk 0:02:11.3]} 14. a3
{[%clk 0:02:24]} 14... N4d5 {[%clk 0:02:04.4]} 15. Qd3 {[%clk 0:02:01.7]} 15...
Bxe5 {[%clk 0:01:52.7]} 16. Rxe5 {[%clk 0:01:55.1]} 16... Nxc3 {[%clk
0:01:41.2]} 17. bxc3 {[%clk 0:01:55.3]} 17... Ba4 {[%clk 0:01:41.3]} 18. Ba2
{[%clk 0:01:51.3]} 18... Qc7 {[%clk 0:01:35.4]} 19. Bd2 {[%clk 0:01:26.8]} 19...
Rfd8 {[%clk 0:01:33.6]} 20. Rh5 {[%clk 0:00:40]} 20... g6 {[%clk 0:01:33.1]} 21.
Rh4 {[%clk 0:00:30.6]} 21... Nc4 {[%clk 0:01:19]} 22. Bg5 {[%clk 0:00:29]} 22...
Rd5 {[%clk 0:01:18.7]} 23. Bh6 {[%clk 0:00:19.6]} 23... Bb5 {[%clk 0:01:06.3]}
24. a4 {[%clk 0:00:14.7]} 24... Ba6 {[%clk 0:01:01.6]} 25. Qf3 {[%clk
0:00:14.2]} 25... Qe7 {[%clk 0:00:51.1]} 26. Rf4 {[%clk 0:00:13.5]} 26... Rh5
{[%clk 0:00:47.3]} 27. Re1 {[%clk 0:00:09.2]} 27... Rxh6 {[%clk 0:00:45.6]} 28.
d5 {[%clk 0:00:09.8]} 28... e5 {[%clk 0:00:30]} 29. d6 {[%clk 0:00:08.2]} 29...
Nxd6 {[%clk 0:00:26.2]} 30. Rf6 {[%clk 0:00:06.2]} 30... Rh5 {[%clk 0:00:22.7]}
31. Rxd6 {[%clk 0:00:05]} 31... Qxd6 {[%clk 0:00:21.5]} 32. Qxf7+ {[%clk
0:00:05.2]} 32... Kh8 {[%clk 0:00:22.1]} 33. g3 {[%clk 0:00:02.3]} 33... Rf8
{[%clk 0:00:22.1]} 34. Qb3 {[%clk 0:00:01.3]} 34... Rhf5 {[%clk 0:00:21.7]} 35.
Qb2 {[%clk 0:00:01.8]} 35... Rxf2 {[%clk 0:00:20.6]} 36. Qxf2 {[%clk 0:00:02.7]}
36... Rxf2 {[%clk 0:00:20.5]} 37. Kxf2 {[%clk 0:00:03.6]} 0-1

[Event "Early-Titled-Tuesday-Blitz-September-12-2023"]
[Site "Chess.com"]
[Date "2023.09.12"]
[Round "4"]
[White "cedchass2006"]
[Black "lamomiajunior"]
[Result "0-1"]
[WhiteElo "2424"]
[BlackElo "2712"]
[TimeControl "180+1"]
[EndTime "8:38:07 PDT"]
[Termination "lamomiajunior won by resignation"]

1. e4 {[%clk 0:02:57.5]} 1... c5 {[%clk 0:03:00.3]} 2. Nf3 {[%clk 0:02:56.6]}
2... d6 {[%clk 0:03:00.7]} 3. Bb5+ {[%clk 0:02:56.6]} 3... Nd7 {[%clk 0:03:00]}
4. Ba4 {[%clk 0:02:56.9]} 4... Nf6 {[%clk 0:02:59.6]} 5. O-O {[%clk 0:02:56.9]}
5... g6 {[%clk 0:03:00.1]} 6. d4 {[%clk 0:02:53.1]} 6... cxd4 {[%clk 0:03:01]}
7. Nxd4 {[%clk 0:02:42.2]} 7... Bg7 {[%clk 0:02:59.6]} 8. Re1 {[%clk 0:02:41.7]}
8... O-O {[%clk 0:02:59.8]} 9. c3 {[%clk 0:02:41.6]} 9... a6 {[%clk 0:02:58.5]}
10. Bc2 {[%clk 0:02:41.6]} 10... Qc7 {[%clk 0:02:49]} 11. Be3 {[%clk 0:02:40]}
11... b5 {[%clk 0:02:48.4]} 12. a4 {[%clk 0:02:37.4]} 12... bxa4 {[%clk
0:02:43.7]} 13. Rxa4 {[%clk 0:02:33.1]} 13... Bb7 {[%clk 0:02:43.5]} 14. f3
{[%clk 0:02:24.2]} 14... d5 {[%clk 0:02:39.2]} 15. exd5 {[%clk 0:02:21.1]} 15...
Nxd5 {[%clk 0:02:40.1]} 16. Bf2 {[%clk 0:02:19.7]} 16... Nc5 {[%clk 0:02:35.6]}
17. Rc4 {[%clk 0:02:12.5]} 17... Qd6 {[%clk 0:02:02.4]} 18. Rxc5 {[%clk
0:01:41.9]} 18... Qxc5 {[%clk 0:02:02.2]} 19. Ne6 {[%clk 0:01:41.6]} 19... Qd6
{[%clk 0:01:54.9]} 20. Nxf8 {[%clk 0:01:41.5]} 20... Rxf8 {[%clk 0:01:54.4]} 21.
Nd2 {[%clk 0:01:24.9]} 21... Rd8 {[%clk 0:01:46.2]} 22. Ne4 {[%clk 0:01:23]}
22... Qc7 {[%clk 0:01:44.3]} 23. Qa1 {[%clk 0:01:08.8]} 23... Be5 {[%clk
0:01:39]} 24. Bg3 {[%clk 0:00:59.7]} 24... Bxg3 {[%clk 0:01:35.4]} 25. Nxg3
{[%clk 0:00:59.8]} 25... Qb6+ {[%clk 0:01:29.3]} 26. Kh1 {[%clk 0:00:58.4]}
26... Nf4 {[%clk 0:01:15.2]} 27. Be4 {[%clk 0:00:53.7]} 27... Bc8 {[%clk
0:01:00.9]} 28. Qc1 {[%clk 0:00:49.9]} 28... Qf2 {[%clk 0:00:51.5]} 29. Rg1
{[%clk 0:00:30.1]} 29... Rd2 {[%clk 0:00:49.9]} 30. Qf1 {[%clk 0:00:16.9]} 30...
Nh3 {[%clk 0:00:48.8]} 31. b4 {[%clk 0:00:08.7]} 31... Nxg1 {[%clk 0:00:47.7]}
32. Qxf2 {[%clk 0:00:06.8]} 32... Rxf2 {[%clk 0:00:45.4]} 33. Kxg1 {[%clk
0:00:07.2]} 33... Rb2 {[%clk 0:00:42.5]} 34. Nf1 {[%clk 0:00:07.1]} 34... Rb3
{[%clk 0:00:40.8]} 35. c4 {[%clk 0:00:04.4]} 35... Rxb4 {[%clk 0:00:40.5]} 36.
Nd2 {[%clk 0:00:04.7]} 36... Rb2 {[%clk 0:00:39.1]} 37. Nf1 {[%clk 0:00:05]}
37... f5 {[%clk 0:00:36.2]} 38. Bc6 {[%clk 0:00:04.5]} 38... f4 {[%clk 0:00:35]}
39. g3 {[%clk 0:00:04.3]} 39... e5 {[%clk 0:00:35.4]} 40. gxf4 {[%clk
0:00:04.4]} 40... exf4 {[%clk 0:00:36.3]} 41. Bd5+ {[%clk 0:00:04.2]} 41... Kg7
{[%clk 0:00:36.3]} 42. h3 {[%clk 0:00:04.6]} 42... Bxh3 {[%clk 0:00:35.9]} 43.
Nh2 {[%clk 0:00:04.5]} 43... Bf5 {[%clk 0:00:36.2]} 0-1

[Event "Early-Titled-Tuesday-Blitz-September-12-2023"]
[Site "Chess.com"]
[Date "2023.09.12"]
[Round "4"]
[White "AttilaTurzo"]
[Black "lluiss"]
[Result "1-0"]
[WhiteElo "2472"]
[BlackElo "2173"]
[TimeControl "180+1"]
[EndTime "8:38:08 PDT"]
[Termination "AttilaTurzo won by resignation"]

1. d4 {[%clk 0:02:55.5]} 1... Nf6 {[%clk 0:02:59.2]} 2. Nf3 {[%clk 0:02:54.9]}
2... g6 {[%clk 0:02:59.3]} 3. Bf4 {[%clk 0:02:55.1]} 3... Bg7 {[%clk 0:02:59.2]}
4. e3 {[%clk 0:02:55.9]} 4... O-O {[%clk 0:02:59.2]} 5. h3 {[%clk 0:02:56]} 5...
b6 {[%clk 0:02:58.6]} 6. Be2 {[%clk 0:02:55.8]} 6... Bb7 {[%clk 0:02:58.7]} 7.
O-O {[%clk 0:02:56.1]} 7... d5 {[%clk 0:02:56.4]} 8. Nbd2 {[%clk 0:02:54.7]}
8... c5 {[%clk 0:02:56.5]} 9. c3 {[%clk 0:02:55.1]} 9... Nc6 {[%clk 0:02:56.8]}
10. Ne5 {[%clk 0:02:52.6]} 10... Nd7 {[%clk 0:02:57]} 11. Ndf3 {[%clk
0:02:38.4]} 11... Ndxe5 {[%clk 0:02:55.3]} 12. Nxe5 {[%clk 0:02:37.4]} 12...
Nxe5 {[%clk 0:02:54.9]} 13. Bxe5 {[%clk 0:02:37.2]} 13... Bxe5 {[%clk 0:02:55]}
14. dxe5 {[%clk 0:02:38.1]} 14... f6 {[%clk 0:02:50.2]} 15. exf6 {[%clk
0:02:35.9]} 15... exf6 {[%clk 0:02:49.4]} 16. Bf3 {[%clk 0:02:35.3]} 16... Rf7
{[%clk 0:02:33.9]} 17. Qb3 {[%clk 0:02:27.9]} 17... Rd7 {[%clk 0:02:33.7]} 18.
Rfd1 {[%clk 0:02:27.4]} 18... Kg7 {[%clk 0:02:33.7]} 19. Rd2 {[%clk 0:02:22.2]}
19... Qg8 {[%clk 0:02:21.5]} 20. Rad1 {[%clk 0:02:19.9]} 20... Rad8 {[%clk
0:02:21.4]} 21. c4 {[%clk 0:02:18.4]} 21... d4 {[%clk 0:01:55.4]} 22. Bxb7
{[%clk 0:02:16.3]} 22... Rxb7 {[%clk 0:01:55.3]} 23. exd4 {[%clk 0:02:16.8]}
23... cxd4 {[%clk 0:01:44.4]} 24. Rxd4 {[%clk 0:02:17.7]} 24... Rxd4 {[%clk
0:01:43.2]} 25. Rxd4 {[%clk 0:02:18.6]} 25... Qe6 {[%clk 0:01:40.6]} 26. Qd1
{[%clk 0:02:08.6]} 26... Re7 {[%clk 0:01:34.5]} 27. Kf1 {[%clk 0:02:03]} 27...
h5 {[%clk 0:01:18.9]} 28. h4 {[%clk 0:01:52.6]} 28... Kf7 {[%clk 0:01:13.7]} 29.
b3 {[%clk 0:01:50.1]} 29... Kg7 {[%clk 0:01:12.6]} 30. Rd2 {[%clk 0:01:47.8]}
30... Qc6 {[%clk 0:01:05.4]} 31. Kg1 {[%clk 0:01:40.8]} 31... Kf7 {[%clk
0:00:47]} 32. g3 {[%clk 0:01:40]} 32... Kg7 {[%clk 0:00:45.8]} 33. Rd5 {[%clk
0:01:21.9]} 33... Qe6 {[%clk 0:00:43.2]} 34. Kg2 {[%clk 0:01:19.3]} 34... Kf7
{[%clk 0:00:42.8]} 35. Qf3 {[%clk 0:01:17.7]} 35... Ke8 {[%clk 0:00:27.3]} 36.
Qf4 {[%clk 0:01:14.3]} 36... Qe4+ {[%clk 0:00:25.6]} 37. Qxe4 {[%clk 0:01:13]}
37... Rxe4 {[%clk 0:00:26.5]} 38. Kf3 {[%clk 0:01:05.6]} 38... Re1 {[%clk
0:00:24.9]} 39. Rd2 {[%clk 0:01:05.6]} 39... Ra1 {[%clk 0:00:23.4]} 40. Ke4
{[%clk 0:01:04.7]} 40... Ke7 {[%clk 0:00:23.4]} 41. Kd5 {[%clk 0:01:05.1]} 41...
Kd7 {[%clk 0:00:23.5]} 42. c5 {[%clk 0:01:01.6]} 42... bxc5 {[%clk 0:00:21.7]}
43. Kxc5+ {[%clk 0:01:02]} 43... Kc7 {[%clk 0:00:22.6]} 44. b4 {[%clk
0:00:57.6]} 44... Rc1+ {[%clk 0:00:22.1]} 45. Kb5 {[%clk 0:00:58]} 45... g5
{[%clk 0:00:17.2]} 46. hxg5 {[%clk 0:00:51.6]} 46... fxg5 {[%clk 0:00:17.4]} 47.
Rd5 {[%clk 0:00:52.3]} 47... h4 {[%clk 0:00:17.6]} 48. Rxg5 {[%clk 0:00:50.1]}
48... hxg3 {[%clk 0:00:17.8]} 49. fxg3 {[%clk 0:00:48.2]} 49... Ra1 {[%clk
0:00:17.8]} 50. a4 {[%clk 0:00:47.6]} 50... Rc1 {[%clk 0:00:16.5]} 51. Rc5+
{[%clk 0:00:47.1]} 1-0

[Event "Early-Titled-Tuesday-Blitz-September-12-2023"]
[Site "Chess.com"]
[Date "2023.09.12"]
[Round "4"]
[White "CFalcons8"]
[Black "Actuary44"]
[Result "0-1"]
[WhiteElo "2309"]
[BlackElo "2517"]
[TimeControl "180+1"]
[EndTime "8:38:09 PDT"]
[Termination "Actuary44 won on time"]

1. e4 {[%clk 0:03:00.9]} 1... c5 {[%clk 0:02:59.1]} 2. Nf3 {[%clk 0:03:00.9]}
2... d6 {[%clk 0:02:59.4]} 3. d4 {[%clk 0:03:00.5]} 3... cxd4 {[%clk 0:03:00.3]}
4. Nxd4 {[%clk 0:03:00.9]} 4... Nf6 {[%clk 0:03:00.9]} 5. Nc3 {[%clk 0:03:01.1]}
5... g6 {[%clk 0:03:01.5]} 6. f3 {[%clk 0:03:00.8]} 6... Bg7 {[%clk 0:03:01.5]}
7. Be3 {[%clk 0:03:01.2]} 7... O-O {[%clk 0:03:02]} 8. Qd2 {[%clk 0:03:01.5]}
8... Nc6 {[%clk 0:03:02.7]} 9. Bc4 {[%clk 0:02:59.8]} 9... Bd7 {[%clk
0:03:02.2]} 10. Bb3 {[%clk 0:02:58.6]} 10... Rc8 {[%clk 0:03:02.5]} 11. O-O-O
{[%clk 0:02:40.7]} 11... Nxd4 {[%clk 0:03:02.6]} 12. Bxd4 {[%clk 0:02:41.6]}
12... b5 {[%clk 0:03:02.8]} 13. Kb1 {[%clk 0:02:40.9]} 13... a5 {[%clk
0:03:02.6]} 14. a4 {[%clk 0:02:37.2]} 14... b4 {[%clk 0:02:59.5]} 15. Nb5 {[%clk
0:02:23.1]} 15... Qe8 {[%clk 0:02:55.8]} 16. Qe2 {[%clk 0:02:08]} 16... Bxb5
{[%clk 0:02:46.7]} 17. axb5 {[%clk 0:02:08.9]} 17... Rb8 {[%clk 0:02:45]} 18.
Ba4 {[%clk 0:02:03.3]} 18... Nd7 {[%clk 0:02:41.4]} 19. Bxg7 {[%clk 0:01:57.9]}
19... Kxg7 {[%clk 0:02:42.3]} 20. b6 {[%clk 0:01:07.9]} 20... Rxb6 {[%clk
0:02:41.2]} 21. e5 {[%clk 0:01:03.2]} 21... Qd8 {[%clk 0:02:25.2]} 22. exd6
{[%clk 0:00:59.9]} 22... Rxd6 {[%clk 0:02:21.4]} 23. Rxd6 {[%clk 0:00:59]} 23...
exd6 {[%clk 0:02:22.3]} 24. Bxd7 {[%clk 0:00:45]} 24... Qxd7 {[%clk 0:02:23.2]}
25. Rd1 {[%clk 0:00:44.6]} 25... Rd8 {[%clk 0:02:21.2]} 26. Qa6 {[%clk
0:00:40.9]} 26... a4 {[%clk 0:02:13.1]} 27. Qc4 {[%clk 0:00:36.4]} 27... b3
{[%clk 0:01:48.4]} 28. cxb3 {[%clk 0:00:27.6]} 28... axb3 {[%clk 0:01:49.3]} 29.
Qxb3 {[%clk 0:00:27.3]} 29... Kg8 {[%clk 0:01:41.9]} 30. Qd5 {[%clk 0:00:20.3]}
30... Qa4 {[%clk 0:01:11.5]} 31. Qd4 {[%clk 0:00:17.1]} 31... Qb3 {[%clk
0:01:04.8]} 32. Rd3 {[%clk 0:00:14.3]} 32... Qb5 {[%clk 0:01:02.5]} 33. Qd5
{[%clk 0:00:11.9]} 33... Qb6 {[%clk 0:01:01.7]} 34. Rc3 {[%clk 0:00:10.2]} 34...
Qg1+ {[%clk 0:00:59.5]} 35. Rc1 {[%clk 0:00:10]} 35... Qxg2 {[%clk 0:00:59.4]}
36. Rc2 {[%clk 0:00:10.2]} 36... Qg1+ {[%clk 0:00:58]} 37. Ka2 {[%clk
0:00:09.8]} 37... Qe3 {[%clk 0:00:54]} 38. Rc3 {[%clk 0:00:06.2]} 38... Qf4
{[%clk 0:00:50.4]} 39. Ra3 {[%clk 0:00:04.2]} 39... Qxh2 {[%clk 0:00:45.2]} 40.
Qg5 {[%clk 0:00:02.7]} 40... Rb8 {[%clk 0:00:41.2]} 41. Qf6 {[%clk 0:00:01.4]}
41... Qe5 {[%clk 0:00:31.3]} 42. Qxe5 {[%clk 0:00:01.5]} 42... dxe5 {[%clk
0:00:32.2]} 0-1

[Event "Early-Titled-Tuesday-Blitz-September-12-2023"]
[Site "Chess.com"]
[Date "2023.09.12"]
[Round "4"]
[White "Hope_6"]
[Black "Grossboss19"]
[Result "0-1"]
[WhiteElo "2688"]
[BlackElo "2542"]
[TimeControl "180+1"]
[EndTime "8:38:11 PDT"]
[Termination "Grossboss19 won on time"]

1. d4 {[%clk 0:03:00]} 1... d5 {[%clk 0:02:53.5]} 2. c4 {[%clk 0:02:58.4]} 2...
dxc4 {[%clk 0:02:50.1]} 3. e4 {[%clk 0:02:57.3]} 3... e5 {[%clk 0:02:42.2]} 4.
Nf3 {[%clk 0:02:55.2]} 4... exd4 {[%clk 0:02:41.9]} 5. Bxc4 {[%clk 0:02:54.1]}
5... Be6 {[%clk 0:02:35.6]} 6. Bxe6 {[%clk 0:02:45.9]} 6... fxe6 {[%clk
0:02:36.5]} 7. Qb3 {[%clk 0:02:40]} 7... Nf6 {[%clk 0:02:21.9]} 8. Qxe6+ {[%clk
0:02:30.7]} 8... Be7 {[%clk 0:02:20.8]} 9. O-O {[%clk 0:02:23.7]} 9... Qd7
{[%clk 0:02:19.5]} 10. Qb3 {[%clk 0:02:18.8]} 10... c5 {[%clk 0:02:13.2]} 11.
Bg5 {[%clk 0:02:11.7]} 11... Nc6 {[%clk 0:02:11.1]} 12. e5 {[%clk 0:01:53.7]}
12... Nd5 {[%clk 0:02:08.1]} 13. Bxe7 {[%clk 0:01:52.1]} 13... Ncxe7 {[%clk
0:02:06.7]} 14. Nbd2 {[%clk 0:01:51.4]} 14... O-O {[%clk 0:02:04.5]} 15. Ne4
{[%clk 0:01:48.7]} 15... b6 {[%clk 0:01:59.7]} 16. Rfe1 {[%clk 0:01:43.4]} 16...
Kh8 {[%clk 0:01:57.8]} 17. Nd6 {[%clk 0:01:34.1]} 17... Qe6 {[%clk 0:01:38.1]}
18. Re4 {[%clk 0:01:00]} 18... Qg6 {[%clk 0:01:19.3]} 19. Rae1 {[%clk
0:00:50.6]} 19... Nf4 {[%clk 0:01:10.5]} 20. g3 {[%clk 0:00:36.4]} 20... Nh3+
{[%clk 0:00:47.6]} 21. Kg2 {[%clk 0:00:36.2]} 21... Nf4+ {[%clk 0:00:29]} 22.
Kh1 {[%clk 0:00:30]} 22... Ne6 {[%clk 0:00:27.4]} 23. Nh4 {[%clk 0:00:27.3]}
23... Qh6 {[%clk 0:00:26.5]} 24. f4 {[%clk 0:00:26.7]} 24... g5 {[%clk
0:00:17.1]} 25. Nhf5 {[%clk 0:00:22.7]} 25... Nxf5 {[%clk 0:00:16]} 26. Nxf5
{[%clk 0:00:23.3]} 26... Rxf5 {[%clk 0:00:15.2]} 27. Qd5 {[%clk 0:00:22.1]}
27... Raf8 {[%clk 0:00:13.1]} 28. Qd7 {[%clk 0:00:18.6]} 28... gxf4 {[%clk
0:00:11.8]} 29. g4 {[%clk 0:00:18.7]} 29... R5f7 {[%clk 0:00:10.9]} 30. Rg1
{[%clk 0:00:17.7]} 30... Rxd7 {[%clk 0:00:10.3]} 0-1

[Event "Early-Titled-Tuesday-Blitz-September-12-2023"]
[Site "Chess.com"]
[Date "2023.09.12"]
[Round "4"]
[White "Lady_Nika"]
[Black "ChEsper99"]
[Result "0-1"]
[WhiteElo "2465"]
[BlackElo "2219"]
[TimeControl "180+1"]
[EndTime "8:38:11 PDT"]
[Termination "ChEsper99 won by checkmate"]

1. c4 {[%clk 0:03:00.9]} 1... c5 {[%clk 0:02:52.8]} 2. Nc3 {[%clk 0:03:00]} 2...
Nc6 {[%clk 0:02:51.4]} 3. g3 {[%clk 0:03:00.4]} 3... d6 {[%clk 0:02:51.1]} 4.
Bg2 {[%clk 0:03:00.6]} 4... g6 {[%clk 0:02:51.8]} 5. d3 {[%clk 0:03:00.9]} 5...
Bg7 {[%clk 0:02:52.3]} 6. e4 {[%clk 0:03:01.3]} 6... e5 {[%clk 0:02:52.3]} 7. f4
{[%clk 0:03:01.3]} 7... Nge7 {[%clk 0:02:51.1]} 8. Nf3 {[%clk 0:03:01.5]} 8...
O-O {[%clk 0:02:50.7]} 9. O-O {[%clk 0:03:01.8]} 9... f5 {[%clk 0:02:51.2]} 10.
Rb1 {[%clk 0:03:01.6]} 10... h6 {[%clk 0:02:17.4]} 11. Be3 {[%clk 0:02:47.6]}
11... Nd4 {[%clk 0:02:16.4]} 12. Bxd4 {[%clk 0:02:46.2]} 12... exd4 {[%clk
0:01:57.9]} 13. Nd5 {[%clk 0:02:44.3]} 13... Nxd5 {[%clk 0:01:58.1]} 14. cxd5
{[%clk 0:02:37.2]} 14... Re8 {[%clk 0:01:49.1]} 15. Re1 {[%clk 0:02:36.8]} 15...
b5 {[%clk 0:01:37.9]} 16. Qb3 {[%clk 0:02:31.8]} 16... Rb8 {[%clk 0:01:34.7]}
17. e5 {[%clk 0:02:31.7]} 17... dxe5 {[%clk 0:01:19.1]} 18. Nxe5 {[%clk
0:02:30.6]} 18... Qd6 {[%clk 0:00:45.1]} 19. Nc6 {[%clk 0:02:29.2]} 19... Rxe1+
{[%clk 0:00:43.9]} 20. Rxe1 {[%clk 0:02:28.4]} 20... Ra8 {[%clk 0:00:28.2]} 21.
Qxb5 {[%clk 0:02:26.6]} 21... Bd7 {[%clk 0:00:25.7]} 22. Qb7 {[%clk 0:02:24.1]}
22... Bxc6 {[%clk 0:00:21.1]} 23. dxc6 {[%clk 0:02:22.3]} 23... Rb8 {[%clk
0:00:15.4]} 24. Qxa7 {[%clk 0:02:11.8]} 24... c4 {[%clk 0:00:11.1]} 25. Re6
{[%clk 0:02:04.2]} 25... Qxe6 {[%clk 0:00:06.7]} 26. Qxb8+ {[%clk 0:02:03.7]}
26... Kh7 {[%clk 0:00:06.9]} 27. c7 {[%clk 0:02:02.9]} 27... Qe1+ {[%clk
0:00:06.9]} 28. Bf1 {[%clk 0:02:02.1]} 28... Qe3+ {[%clk 0:00:07]} 29. Kg2
{[%clk 0:02:02.1]} 29... Qd2+ {[%clk 0:00:05.7]} 30. Kh1 {[%clk 0:01:20]} 30...
Qf2 {[%clk 0:00:06.1]} 31. Bh3 {[%clk 0:01:18.9]} 31... Qe1+ {[%clk 0:00:05.8]}
32. Kg2 {[%clk 0:01:18.9]} 32... Qe2+ {[%clk 0:00:06]} 33. Kg1 {[%clk
0:01:19.2]} 33... Qe1+ {[%clk 0:00:06.3]} 34. Bf1 {[%clk 0:01:19]} 34... Qe3+
{[%clk 0:00:06.7]} 35. Kg2 {[%clk 0:01:19.2]} 35... Qd2+ {[%clk 0:00:06.3]} 36.
Kh3 {[%clk 0:01:00.1]} 36... Qd1 {[%clk 0:00:06.4]} 37. c8=Q {[%clk 0:00:35]}
37... Qxf1+ {[%clk 0:00:05.7]} 38. Kh4 {[%clk 0:00:35.3]} 38... Bf6# {[%clk
0:00:04.7]} 0-1